fUST/lending_fUST_20250818
["ID","MTS","AMOUNT","RATE_DAILY","PERIOD"]
[380061998,1755522652345,-480.0,0.00023616,3]
[380061999,1755522652355,-480.0,0.00023616,3]
[380062000,1755522652368,-480.0,0.00023616,3]
[380062001,1755522652378,-1959.53,0.00023616,3]
[380062002,1755522652395,-3358.6,0.00023616,3]
[380062003,1755522652406,-480.0,0.00023616,3]
[380062004,1755522652416,-480.0,0.00023616,3]
[380062005,1755522652425,-480.0,0.00023616,3]
[380062006,1755522652435,-480.0,0.00023616,3]
[380062007,1755522652447,-480.0,0.00023616,3]
[380062008,1755522652461,-601.1,0.00023616,3]
[380062009,1755522652472,-550.04,0.00023616,3]
[380062010,1755522652481,-480.0,0.00023616,3]
[380062011,1755522652491,-1724.96,0.00023616,3]
[380062012,1755522652501,-574.07,0.00023616,3]
[380062013,1755522652510,-975.37,0.00023616,3]
[380062014,1755522652519,-480.0,0.00023616,3]
[380062015,1755522652528,-761.62,0.00023616,3]
[380062016,1755522652539,-480.0,0.00023616,3]
[380062017,1755522652559,-714.19,0.00023616,3]
[380062018,1755522652577,-887.04,0.00023616,3]
[380062019,1755522652597,-480.0,0.00023616,3]
[380062020,1755522652617,-1572.47,0.00023616,3]
[380062021,1755522652637,-480.0,0.00023616,3]
[380062022,1755522652659,-480.0,0.00023616,3]
[380062023,1755522652670,-1612.83,0.00023616,3]
[380062024,1755522652679,-480.0,0.00023616,3]
[380062025,1755522652688,-4140.93,0.00023616,3]
[380062026,1755522652698,-1050.53,0.00023616,3]
[380062027,1755522652707,-825.33,0.00023616,3]
[380062028,1755522652718,-500.0,0.00023618,3]
[380062029,1755522652728,-1001.70449007,0.00023621,2]
[380062030,1755522652738,-1000.0,0.00023621,2]
[380062031,1755522652749,-501.51266676,0.00023621,2]
[380062032,1755522652759,-500.0,0.00023621,2]
[380062033,1755522652769,-1000.0,0.00023621,2]
[380062034,1755522652852,-500.0,0.00023621,2]
[380062035,1755522652861,-1000.0,0.00023621,2]
[380062036,1755522652870,-151.0,0.00023621,7]
[380062037,1755522652880,-500.0,0.00023634,2]
[380062038,1755522652889,-500.0,0.00023662,2]
[380062039,1755522652898,-500.0,0.00023662,2]
[380062040,1755522652907,-500.0,0.00023662,2]
[380062041,1755522652916,-500.0,0.00023662,2]
[380062042,1755522652925,-500.0,0.00023662,2]
[380062043,1755522652935,-421.75771627,0.00023665,3]
[380062044,1755522652944,-1642.11,0.00023674,3]
[380062045,1755522652953,-480.0,0.00023674,3]
[380062046,1755522652962,-2359.42,0.00023674,3]
[380062047,1755522652972,-547.04,0.00023674,3]
[380062048,1755522652981,-480.0,0.00023674,3]
[380062049,1755522652990,-480.0,0.00023684,3]
[380062050,1755522653000,-151.0,0.000237,6]
[380062051,1755522653009,-811.16,0.00023721,3]
[380062052,1755522653018,-1200.04,0.00023721,3]
[380062053,1755522653027,-480.0,0.00023721,3]
[380062054,1755522653036,-983.41,0.00023721,3]
[380062055,1755522653045,-480.0,0.00023721,3]
[380062056,1755522653055,-544.33,0.00023745,2]
[380062057,1755522653064,-920.17,0.00023752,3]
[380062058,1755522653074,-480.0,0.00023752,3]
[380062059,1755522653082,-480.0,0.00023752,3]
[380062060,1755522653092,-985.63,0.00023752,3]
[380062061,1755522653101,-480.0,0.00023752,3]
[380062062,1755522653111,-480.0,0.00023752,3]
[380062063,1755522653120,-480.0,0.00023752,3]
[380062064,1755522653129,-151.0,0.00023753,7]
[380062065,1755522653140,-500.0,0.00023753,3]
[380062066,1755522653149,-2204.27,0.00023753,3]
[380062067,1755522653158,-153.0,0.00023753,2]
[380062068,1755522653167,-153.0,0.00023753,2]
[380062069,1755522653177,-153.0,0.00023753,2]
[380062070,1755522653186,-153.0,0.00023753,2]
[380062071,1755522653195,-480.0,0.00023767,3]
[380062072,1755522653205,-818.27,0.00023767,3]
[380062073,1755522653214,-480.0,0.00023767,3]
[380062074,1755522653224,-583.75,0.00023768,3]
[380062075,1755522653233,-6143.04,0.00023768,3]
[380062076,1755522653243,-8378.93,0.00023768,3]
[380062077,1755522653252,-668.35,0.00023768,3]
[380062078,1755522653261,-1345.64,0.00023768,3]
[380062079,1755522653271,-524.51,0.00023768,3]
[380062080,1755522653280,-939.53,0.00023768,3]
[380062081,1755522653290,-1292.81,0.00023768,3]
[380062082,1755522653299,-421.36,0.00023768,3]
[380062083,1755522653309,-480.0,0.00023768,3]
[380062084,1755522653318,-168.0,0.00023773,2]
[380062085,1755522653327,-2761.02,0.00023792,3]
[380062086,1755522653336,-3725.18,0.00023792,3]
[380062087,1755522653345,-151.0,0.000238,10]
[380062088,1755522653354,-480.0,0.00023808,3]
[380062089,1755522653364,-480.0,0.00023808,3]
[380062090,1755522653373,-1366.12,0.00023808,3]
[380062091,1755522653382,-480.0,0.00023808,3]
[380062092,1755522653392,-480.0,0.00023808,3]
[380062093,1755522653401,-480.0,0.00023808,3]
[380062094,1755522653410,-480.0,0.00023808,3]
[380062095,1755522653420,-480.0,0.00023808,3]
[380062096,1755522653429,-480.0,0.00023808,3]
[380062097,1755522653438,-480.0,0.00023808,3]
[380062098,1755522653448,-480.0,0.00023808,3]
[380062099,1755522653457,-480.0,0.00023808,3]
[380062100,1755522653466,-480.0,0.00023808,3]
[380062101,1755522653475,-809.63,0.00023808,3]
[380062102,1755522653486,-424.33,0.00023808,3]
[380062104,1755522653495,-480.0,0.00023808,3]
[380062105,1755522653504,-480.0,0.00023808,3]
[380062106,1755522653514,-480.0,0.00023808,3]
[380062107,1755522653523,-649.39,0.00023808,3]
[380062108,1755522653532,-548.93,0.00023808,3]
[380062109,1755522653541,-480.0,0.00023808,3]
[380062110,1755522653550,-583.56,0.00023808,3]
[380062111,1755522653559,-480.0,0.00023808,3]
[380062112,1755522653569,-349.4321833,0.00023808,3]
[380062113,1755522653578,-480.0,0.00023808,3]
[380062114,1755522653592,-480.0,0.00023808,3]
[380062115,1755522653601,-480.0,0.00023808,3]
[380062116,1755522653610,-814.63,0.00023808,3]
[380062117,1755522653623,-480.0,0.00023808,3]
[380062118,1755522653632,-1947.05,0.00023808,3]
[380062119,1755522653641,-480.0,0.00023808,3]
[380062120,1755522653650,-4106.52,0.00023808,3]
[380062121,1755522653661,-1580.08,0.00023808,3]
[380062122,1755522653670,-480.0,0.00023808,3]
[380062123,1755522653679,-405.42028926,0.00023808,3]
[380062124,1755522653688,-407.92651741,0.00023808,3]
[380062125,1755522653698,-1673.73,0.00023808,3]
[380062126,1755522653707,-480.0,0.00023808,3]
[380062127,1755522653716,-480.0,0.00023808,3]
[380062128,1755522653726,-430.8094389,0.00023808,3]
[380062129,1755522653734,-403.16128215,0.00023808,3]
[380062130,1755522653744,-480.0,0.00023808,3]
[380062131,1755522653753,-600.31516834,0.00023808,3]
[380062132,1755522653763,-480.0,0.00023808,3]
[380062133,1755522653772,-220.27,0.00023808,3]
[380062134,1755522653781,-480.0,0.00023808,3]
[380062135,1755522653791,-480.0,0.00023808,3]
[380062136,1755522653800,-480.0,0.00023808,3]
[380062137,1755522653809,-500.71,0.00023808,3]
[380062138,1755522653818,-480.0,0.00023808,3]
[380062139,1755522653828,-540.31,0.00023808,3]
[380062140,1755522653837,-480.0,0.00023808,3]
[380062141,1755522653846,-480.0,0.00023808,3]
[380062142,1755522653856,-480.0,0.00023808,3]
[380062143,1755522653867,-480.0,0.00023808,3]
[380062144,1755522653877,-480.0,0.00023808,3]
[380062145,1755522653886,-200.0,0.00023808,3]
[380062146,1755522653896,-168.0,0.00023809,2]
[380062147,1755522653905,-480.0,0.00023809,3]
[380062148,1755522653914,-480.0,0.00023809,3]
[380062149,1755522653924,-480.0,0.00023809,3]
[380062150,1755522653933,-480.0,0.00023809,3]
[380062151,1755522653942,-480.0,0.00023809,3]
[380062152,1755522653951,-480.0,0.00023809,3]
[380062153,1755522653960,-480.0,0.00023809,3]
[380062154,1755522653970,-489.34,0.00023809,3]
[380062155,1755522653979,-5163.32042151,0.00023811,2]
[380062156,1755522653989,-246.81665,0.00023813,7]
[380062157,1755522653998,-1000.0,0.00023821,2]
[380062158,1755522654008,-500.0,0.00023821,2]
[380062159,1755522654017,-500.0,0.00023821,2]
[380062160,1755522654027,-1000.0,0.00023821,2]
[380062161,1755522654036,-1000.0,0.00023821,2]
[380062162,1755522654045,-501.34172822,0.00023821,2]
[380062163,1755522654054,-1000.0,0.00023821,2]
[380062164,1755522654064,-500.0,0.00023821,2]
[380062165,1755522654073,-500.0,0.00023821,2]
[380062166,1755522654083,-1000.0,0.00023821,2]
[380062167,1755522654159,-1000.0,0.00023821,2]
[380062168,1755522654170,-151.0,0.00023822,2]
[380062169,1755522654179,-151.0,0.00023822,2]
[380062170,1755522654188,-500.0,0.00023822,2]
[380062171,1755522654197,-293.0,0.00023828,2]
[380062172,1755522654206,-431.9034523,0.00023828,2]
[380062173,1755522654216,-1200.0,0.00023865,2]
[380062174,1755522654225,-500.79364388,0.00023873,2]
[380062175,1755522654234,-463.92092705,0.00023873,2]
[380062176,1755522654244,-500.0,0.00023873,2]
[380062177,1755522654253,-500.0,0.00023873,2]
[380062178,1755522654262,-500.0,0.00023889,3]
[380062179,1755522654271,-2204.27,0.00023889,3]
[380062180,1755522654281,-480.0,0.0002389,3]
[380062181,1755522654290,-480.0,0.0002389,3]
[380062182,1755522654300,-480.0,0.0002389,3]
[380062183,1755522654310,-480.0,0.0002389,3]
[380062184,1755522654319,-1868.82,0.0002389,3]
[380062185,1755522654329,-480.0,0.0002389,3]
[380062186,1755522654339,-480.0,0.0002389,3]
[380062187,1755522654349,-480.0,0.0002389,3]
[380062188,1755522654360,-480.0,0.0002389,3]
[380062189,1755522654371,-1302.73,0.0002389,3]
[380062190,1755522654381,-480.0,0.0002389,3]
[380062191,1755522654390,-480.0,0.0002389,3]
[380062192,1755522654400,-480.0,0.0002389,3]
[380062193,1755522654409,-480.0,0.0002389,3]
[380062194,1755522654418,-480.0,0.0002389,3]
[380062195,1755522654428,-1959.53,0.0002389,3]
[380062196,1755522654437,-3358.6,0.0002389,3]
[380062197,1755522654446,-480.0,0.0002389,3]
[380062198,1755522654455,-480.0,0.0002389,3]
[380062199,1755522654465,-480.0,0.0002389,3]
[380062200,1755522654474,-480.0,0.0002389,3]
[380062201,1755522654483,-480.0,0.0002389,3]
[380062202,1755522654492,-601.1,0.0002389,3]
[380062203,1755522654501,-550.04,0.0002389,3]
[380062204,1755522654511,-480.0,0.0002389,3]
[380062205,1755522654520,-1724.96,0.0002389,3]
[380062206,1755522654531,-574.07,0.0002389,3]
[380062207,1755522654540,-975.37,0.0002389,3]
[380062208,1755522654549,-480.0,0.0002389,3]
[380062209,1755522654559,-761.62,0.0002389,3]
[380062210,1755522654569,-480.0,0.0002389,3]
[380062211,1755522654578,-714.19,0.0002389,3]
[380062212,1755522654590,-887.04,0.0002389,3]
[380062213,1755522654598,-480.0,0.0002389,3]
[380062214,1755522654608,-1572.47,0.0002389,3]
[380062215,1755522654619,-480.0,0.0002389,3]
[380062216,1755522654629,-480.0,0.0002389,3]
[380062217,1755522654638,-1612.83,0.0002389,3]
[380062218,1755522654647,-480.0,0.0002389,3]
[380062219,1755522654657,-4140.93,0.0002389,3]
[380062220,1755522654668,-1050.53,0.0002389,3]
[380062221,1755522654677,-825.33,0.0002389,3]
[380062222,1755522654687,-24053.24202945,0.0002389,3]
[380062223,1755522654696,-160.0,0.00023898,3]
[380062224,1755522654705,-4021.0,0.00023939,2]
[380062225,1755522654714,-1642.11,0.00023948,3]
[380062226,1755522654724,-480.0,0.00023948,3]
[380062227,1755522654733,-2359.42,0.00023948,3]
[380062228,1755522654742,-547.04,0.00023948,3]
[380062229,1755522654751,-480.0,0.00023948,3]
[380062230,1755522654761,-480.0,0.00023958,3]
[380062231,1755522654771,-2204.27,0.00023972,3]
[380062232,1755522654780,-500.0,0.00023989,3]
[380062233,1755522654789,-500.0,0.00023989,3]
[380062234,1755522654799,-500.0,0.00023989,3]
[380062235,1755522654808,-584.53,0.00023989,3]
[380062236,1755522654818,-2204.27,0.00023989,3]
[380062237,1755522654827,-2204.27,0.00023989,3]
[380062238,1755522654837,-2204.27,0.00023989,3]
[380062239,1755522654846,-2204.27,0.00023989,3]
[380062240,1755522654856,-2204.27,0.00023989,3]
[380062241,1755522654867,-2204.27,0.00023989,3]
[380062242,1755522654877,-2204.27,0.00023989,3]
[380062243,1755522654887,-2204.27,0.00023989,3]
[380062244,1755522654896,-2204.38816894,0.00023989,3]
[380062245,1755522654906,-811.16,0.00023995,3]
[380062246,1755522654916,-1200.04,0.00023995,3]
[380062247,1755522654926,-480.0,0.00023995,3]
[380062248,1755522654935,-983.41,0.00023995,3]
[380062249,1755522654945,-480.0,0.00023995,3]
[380062250,1755522654954,-216.85420361,0.00024,7]
[380062251,1755522654963,-3796.74,0.00024,7]
[380062252,1755522654973,-232.18122251,0.00024,7]
[380062253,1755522654983,-168.0,0.00024012,2]
[380062254,1755522654993,-168.0,0.00024021,2]
[380062255,1755522655003,-420.0,0.00024022,2]
[380062256,1755522655012,-920.17,0.00024026,3]
[380062257,1755522655021,-480.0,0.00024026,3]
[380062258,1755522655030,-480.0,0.00024026,3]
[380062259,1755522655039,-985.63,0.00024026,3]
[380062260,1755522655048,-480.0,0.00024026,3]
[380062261,1755522655057,-612.78,0.00024026,3]
[380062262,1755522655068,-511.65,0.00024026,3]
[380062263,1755522655077,-3141.98,0.00024032,3]
[380062264,1755522655086,-168.0,0.00024035,2]
[380062265,1755522655095,-480.0,0.00024041,3]
[380062266,1755522655104,-818.27,0.00024041,3]
[380062267,1755522655114,-480.0,0.00024041,3]
[380062268,1755522655123,-583.75,0.00024042,3]
[380062269,1755522655132,-6143.04,0.00024042,3]
[380062270,1755522655142,-8378.93,0.00024042,3]
[380062271,1755522655152,-668.35,0.00024042,3]
[380062272,1755522655161,-1345.64,0.00024042,3]
[380062273,1755522655171,-524.51,0.00024042,3]
[380062274,1755522655180,-939.53,0.00024042,3]
[380062275,1755522655190,-1292.81,0.00024042,3]
[380062276,1755522655200,-480.0,0.00024042,3]
[380062277,1755522655209,-168.0,0.00024045,2]
[380062278,1755522655218,-2761.02,0.00024066,3]
[380062279,1755522655227,-3725.18,0.00024066,3]
[380062280,1755522655237,-1500.0,0.00024068,2]
[380062281,1755522655246,-1000.0,0.00024073,2]
[380062282,1755522655255,-480.0,0.00024082,3]
[380062283,1755522655264,-480.0,0.00024082,3]
[380062284,1755522655273,-1366.12,0.00024082,3]
[380062285,1755522655283,-480.0,0.00024082,3]
[380062286,1755522655292,-480.0,0.00024082,3]
[380062287,1755522655301,-480.0,0.00024082,3]
[380062288,1755522655310,-480.0,0.00024082,3]
[380062289,1755522655383,-480.0,0.00024082,3]
[380062290,1755522655392,-480.0,0.00024082,3]
[380062291,1755522655402,-400.04817312,0.00024082,3]
[380062292,1755522655411,-480.0,0.00024082,3]
[380062293,1755522655420,-480.0,0.00024082,3]
[380062294,1755522655429,-480.0,0.00024082,3]
[380062295,1755522655440,-809.63,0.00024082,3]
[380062296,1755522655450,-480.0,0.00024082,3]
[380062297,1755522655460,-480.0,0.00024082,3]
[380062298,1755522655469,-480.0,0.00024082,3]
[380062299,1755522655478,-649.39,0.00024082,3]
[380062300,1755522655488,-548.93,0.00024082,3]
[380062301,1755522655497,-480.0,0.00024082,3]
[380062302,1755522655506,-583.56,0.00024082,3]
[380062303,1755522655515,-330.47430461,0.00024082,3]
[380062304,1755522655525,-480.0,0.00024082,3]
[380062305,1755522655534,-480.0,0.00024082,3]
[380062306,1755522655543,-480.0,0.00024082,3]
[380062307,1755522655552,-814.63,0.00024082,3]
[380062309,1755522655561,-480.0,0.00024082,3]
[380062310,1755522655571,-1947.05,0.00024082,3]
[380062311,1755522655581,-480.0,0.00024082,3]
[380062312,1755522655592,-4106.52,0.00024082,3]
[380062313,1755522655602,-1580.08,0.00024082,3]
[380062314,1755522655611,-480.0,0.00024082,3]
[380062315,1755522655620,-1673.73,0.00024082,3]
[380062316,1755522655630,-480.0,0.00024082,3]
[380062317,1755522655640,-480.0,0.00024082,3]
[380062318,1755522655649,-480.0,0.00024082,3]
[380062319,1755522655659,-480.0,0.00024082,3]
[380062320,1755522655669,-480.0,0.00024082,3]
[380062321,1755522655679,-480.0,0.00024082,3]
[380062322,1755522655688,-480.0,0.00024082,3]
[380062323,1755522655698,-500.71,0.00024082,3]
[380062324,1755522655708,-480.0,0.00024082,3]
[380062325,1755522655717,-480.0,0.00024082,3]
[380062326,1755522655726,-540.31,0.00024082,3]
[380062327,1755522655736,-480.0,0.00024082,3]
[380062328,1755522655745,-480.0,0.00024082,3]
[380062329,1755522655755,-480.0,0.00024082,3]
[380062330,1755522655768,-480.0,0.00024082,3]
[380062331,1755522655778,-170.26131077,0.00024082,2]
[380062332,1755522655788,-153.32251726,0.00024082,2]
[380062333,1755522655798,-480.0,0.00024083,3]
[380062334,1755522655807,-480.0,0.00024083,3]
[380062335,1755522655818,-480.0,0.00024083,3]
[380062336,1755522655828,-480.0,0.00024083,3]
[380062337,1755522655837,-480.0,0.00024083,3]
[380062338,1755522655846,-480.0,0.00024083,3]
[380062339,1755522655856,-480.0,0.00024083,3]
[380062340,1755522655865,-489.34,0.00024083,3]
[380062341,1755522655875,-151.0,0.00024096,2]
[380062342,1755522655884,-500.0,0.00024096,2]
[380062343,1755522655893,-360.0,0.00024118,2]
[380062344,1755522655903,-150.74967994,0.00024123,2]
[380062345,1755522655912,-3141.98,0.00024144,3]
[380062346,1755522655922,-168.96013091,0.00024146,2]
[380062347,1755522655931,-4097.54,0.00024154,3]
[380062348,1755522655940,-480.0,0.00024164,3]
[380062349,1755522655949,-480.0,0.00024164,3]
[380062350,1755522655958,-480.0,0.00024164,3]
[380062351,1755522655968,-480.0,0.00024164,3]
[380062352,1755522655977,-1868.82,0.00024164,3]
[380062353,1755522655986,-352.33359148,0.00024164,3]
[380062354,1755522655995,-480.0,0.00024164,3]
[380062355,1755522656004,-480.0,0.00024164,3]
[380062356,1755522656014,-480.0,0.00024164,3]
[380062357,1755522656023,-1302.73,0.00024164,3]
[380062358,1755522656033,-480.0,0.00024164,3]
[380062359,1755522656042,-480.0,0.00024164,3]
[380062360,1755522656051,-480.0,0.00024164,3]
[380062361,1755522656060,-616.25,0.00024164,3]
[380062362,1755522656070,-480.0,0.00024164,3]
[380062363,1755522656079,-1959.53,0.00024164,3]
[380062364,1755522656089,-3358.6,0.00024164,3]
[380062365,1755522656098,-480.0,0.00024164,3]
[380062366,1755522656107,-480.0,0.00024164,3]
[380062367,1755522656117,-475.092853,0.00024164,3]
[380062368,1755522656127,-480.0,0.00024164,3]
[380062369,1755522656145,-480.0,0.00024164,3]
[380062370,1755522656158,-601.1,0.00024164,3]
[380062371,1755522656167,-550.04,0.00024164,3]
[380062372,1755522656178,-480.0,0.00024164,3]
[380062373,1755522656189,-1724.96,0.00024164,3]
[380062374,1755522656199,-574.07,0.00024164,3]
[380062375,1755522656209,-975.37,0.00024164,3]
[380062376,1755522656219,-480.0,0.00024164,3]
[380062377,1755522656228,-761.62,0.00024164,3]
[380062378,1755522656237,-480.0,0.00024164,3]
[380062379,1755522656248,-714.19,0.00024164,3]
[380062380,1755522656270,-887.04,0.00024164,3]
[380062381,1755522656281,-480.0,0.00024164,3]
[380062382,1755522656290,-1572.47,0.00024164,3]
[380062383,1755522656299,-480.0,0.00024164,3]
[380062384,1755522656309,-480.0,0.00024164,3]
[380062385,1755522656318,-1612.83,0.00024164,3]
[380062386,1755522656327,-480.0,0.00024164,3]
[380062387,1755522656336,-4140.93,0.00024164,3]
[380062388,1755522656346,-1050.53,0.00024164,3]
[380062389,1755522656355,-825.33,0.00024164,3]
[380062390,1755522656365,-1500.0,0.00024168,2]
[380062391,1755522656374,-500.0,0.00024168,2]
[380062392,1755522656383,-345.42670777,0.00024168,2]
[380062393,1755522656393,-1589.57,0.000242,7]
[380062394,1755522656402,-1000.0,0.0002421,2]
[380062395,1755522656411,-500.0,0.0002421,2]
[380062396,1755522656421,-500.99682678,0.0002421,2]
[380062397,1755522656430,-500.0,0.0002421,2]
[380062398,1755522656439,-501.7282959,0.0002421,2]
[380062399,1755522656448,-293.7439445,0.00024216,2]
[380062400,1755522656459,-1642.11,0.00024222,3]
[380062401,1755522656468,-480.0,0.00024222,3]
[380062402,1755522656540,-2359.42,0.00024222,3]
[380062403,1755522656550,-547.04,0.00024222,3]
[380062404,1755522656559,-480.0,0.00024222,3]
[380062405,1755522656568,-293.8392635,0.00024222,2]
[380062406,1755522656577,-293.8392635,0.00024222,2]
[380062407,1755522656590,-293.8392635,0.00024222,2]
[380062408,1755522656599,-293.8392635,0.00024222,2]
[380062409,1755522656608,-293.8392635,0.00024222,2]
[380062410,1755522656619,-406.0565968,0.00024222,2]
[380062411,1755522656629,-480.0,0.00024232,3]
[380062412,1755522656638,-18502.69577858,0.00024265,2]
[380062413,1755522656647,-811.16,0.00024269,3]
[380062414,1755522656656,-1200.04,0.00024269,3]
[380062415,1755522656666,-480.0,0.00024269,3]
[380062416,1755522656676,-983.41,0.00024269,3]
[380062417,1755522656686,-480.0,0.00024269,3]
[380062418,1755522656695,-920.17,0.000243,3]
[380062419,1755522656704,-480.0,0.000243,3]
[380062420,1755522656713,-480.0,0.000243,3]
[380062421,1755522656724,-985.63,0.000243,3]
[380062422,1755522656733,-480.0,0.000243,3]
[380062423,1755522656742,-155.19,0.00024308,7]
[380062424,1755522656751,-480.0,0.00024315,3]
[380062425,1755522656760,-818.27,0.00024315,3]
[380062426,1755522656769,-480.0,0.00024315,3]
[380062427,1755522656779,-583.75,0.00024316,3]
[380062428,1755522656788,-6143.04,0.00024316,3]
[380062429,1755522656797,-8378.93,0.00024316,3]
[380062430,1755522656807,-668.35,0.00024316,3]
[380062431,1755522656816,-1345.64,0.00024316,3]
[380062432,1755522656825,-524.51,0.00024316,3]
[380062433,1755522656834,-939.53,0.00024316,3]
[380062434,1755522656845,-1292.81,0.00024316,3]
[380062435,1755522656855,-480.0,0.00024316,3]
[380062436,1755522656864,-170.26131077,0.00024329,2]
[380062437,1755522656873,-153.32251726,0.00024329,2]
[380062438,1755522656883,-2761.02,0.0002434,3]
[380062439,1755522656892,-3725.18,0.0002434,3]
[380062440,1755522656902,-305.23063181,0.00024356,3]
[380062441,1755522656911,-480.0,0.00024356,3]
[380062442,1755522656920,-1366.12,0.00024356,3]
[380062443,1755522656930,-480.0,0.00024356,3]
[380062444,1755522656940,-480.0,0.00024356,3]
[380062445,1755522656950,-480.0,0.00024356,3]
[380062446,1755522656959,-480.0,0.00024356,3]
[380062447,1755522656969,-371.6961619,0.00024356,3]
[380062448,1755522656978,-480.0,0.00024356,3]
[380062449,1755522656988,-480.0,0.00024356,3]
[380062450,1755522656997,-480.0,0.00024356,3]
[380062451,1755522657007,-480.0,0.00024356,3]
[380062452,1755522657015,-809.63,0.00024356,3]
[380062453,1755522657024,-480.0,0.00024356,3]
[380062454,1755522657038,-480.0,0.00024356,3]
[380062455,1755522657057,-367.26629957,0.00024356,3]
[380062456,1755522657074,-649.39,0.00024356,3]
[380062457,1755522657093,-548.93,0.00024356,3]
[380062458,1755522657112,-480.0,0.00024356,3]
[380062459,1755522657129,-583.56,0.00024356,3]
[380062460,1755522657146,-480.0,0.00024356,3]
[380062461,1755522657162,-480.0,0.00024356,3]
[380062462,1755522657176,-480.0,0.00024356,3]
[380062463,1755522657195,-814.63,0.00024356,3]
[380062464,1755522657233,-480.0,0.00024356,3]
[380062465,1755522657253,-1947.05,0.00024356,3]
[380062466,1755522657269,-480.0,0.00024356,3]
[380062467,1755522657287,-4106.52,0.00024356,3]
[380062468,1755522657303,-1580.08,0.00024356,3]
[380062469,1755522657318,-480.0,0.00024356,3]
[380062470,1755522657332,-1673.73,0.00024356,3]
[380062471,1755522657348,-480.0,0.00024356,3]
[380062472,1755522657362,-480.0,0.00024356,3]
[380062473,1755522657377,-480.0,0.00024356,3]
[380062474,1755522657391,-507.93341817,0.00024356,3]
[380062475,1755522657405,-480.0,0.00024356,3]
[380062476,1755522657419,-480.0,0.00024356,3]
[380062477,1755522657434,-480.0,0.00024356,3]
[380062478,1755522657448,-500.71,0.00024356,3]
[380062479,1755522657463,-480.0,0.00024356,3]
[380062480,1755522657477,-480.0,0.00024356,3]
[380062481,1755522657491,-540.31,0.00024356,3]
[380062482,1755522657506,-480.0,0.00024356,3]
[380062483,1755522657521,-480.0,0.00024356,3]
[380062484,1755522657536,-480.0,0.00024356,3]
[380062485,1755522657549,-376.18884641,0.00024356,3]
[380062486,1755522657563,-480.0,0.00024357,3]
[380062487,1755522657577,-480.0,0.00024357,3]
[380062488,1755522657594,-480.0,0.00024357,3]
[380062489,1755522657613,-480.0,0.00024357,3]
[380062490,1755522657627,-480.0,0.00024357,3]
[380062491,1755522657643,-480.0,0.00024357,3]
[380062492,1755522657657,-480.0,0.00024357,3]
[380062493,1755522657671,-489.34,0.00024357,3]
[380062494,1755522657686,-501.81116805,0.00024368,2]
[380062495,1755522657701,-1500.0,0.00024368,2]
[380062496,1755522657716,-1104.80625665,0.00024368,2]
[380062497,1755522657731,-1500.0,0.00024368,2]
[380062498,1755522657746,-502.42720489,0.00024368,2]
[380062499,1755522657760,-1500.0,0.00024368,2]